fUST/lending_fUST_20240727
["ID","MTS","AMOUNT","RATE_DAILY","PERIOD"]
[333286835,1722024648080,-500.0,0.00013698,2]
[333286836,1722024648089,-500.0,0.00013698,2]
[333286837,1722024648098,-500.0,0.00013698,2]
[333286838,1722024648107,-500.0,0.00013698,2]
[333286839,1722024648117,-500.0,0.00013698,2]
[333286840,1722024648127,-500.0,0.00013698,2]
[333286841,1722024648137,-771.03,0.00013698,2]
[333286842,1722024648147,-500.0,0.00013698,2]
[333286843,1722024648156,-500.0,0.00013698,2]
[333286844,1722024648166,-500.0,0.00013698,2]
[333286845,1722024648176,-500.0,0.00013698,2]
[333286846,1722024648186,-500.0,0.00013698,2]
[333286847,1722024648199,-246.37709923,0.00013698,2]
[333286848,1722024648210,-280.43116125,0.00013698,2]
[333286849,1722024648220,-500.0,0.00013698,2]
[333286850,1722024648230,-500.0,0.00013698,2]
[333286852,1722024648240,-500.0,0.00013698,2]
[333286853,1722024648250,-500.0,0.00013698,2]
[333286854,1722024648260,-500.0,0.00013698,2]
[333286855,1722024648271,-500.0,0.00013698,2]
[333286856,1722024648281,-502.27364865,0.00013698,2]
[333286857,1722024648292,-500.0,0.00013698,2]
[333286858,1722024648302,-500.0,0.00013698,2]
[333286859,1722024648313,-259.32795271,0.00013698,2]
[333286860,1722024648323,-588.78,0.00013698,2]
[333286861,1722024648332,-500.0,0.00013698,2]
[333286862,1722024648342,-500.58453657,0.00013698,2]
[333286863,1722024648352,-500.0,0.00013698,2]
[333286864,1722024648362,-500.0,0.00013698,2]
[333286865,1722024648372,-500.0,0.00013698,2]
[333286866,1722024648381,-500.0,0.00013698,2]
[333286867,1722024648390,-503.19222684,0.00013698,2]
[333286868,1722024648400,-500.0,0.00013698,2]
[333286869,1722024648410,-816.15,0.00013698,2]
[333286870,1722024648419,-383.56745157,0.00013698,2]
[333286871,1722024648429,-500.0,0.00013698,2]
[333286872,1722024648439,-500.0,0.00013698,2]
[333286873,1722024648449,-500.0,0.00013698,2]
[333286874,1722024648458,-500.366841,0.00013698,2]
[333286875,1722024648468,-500.0,0.00013698,2]
[333286876,1722024648478,-520.52316604,0.00013698,2]
[333286877,1722024648488,-500.0,0.00013698,2]
[333286878,1722024648497,-500.0,0.00013698,2]
[333286879,1722024648508,-500.0,0.00013698,2]
[333286880,1722024648520,-500.0,0.00013698,2]
[333286881,1722024648530,-500.0,0.00013698,2]
[333286882,1722024648540,-515.31335447,0.00013698,2]
[333286883,1722024648550,-500.0,0.00013698,2]
[333286884,1722024648561,-500.0,0.00013698,2]
[333286885,1722024648571,-247.91112171,0.00013698,2]
[333286886,1722024648580,-500.0,0.00013698,2]
[333286887,1722024648590,-500.0,0.00013698,2]
[333286888,1722024648603,-500.0,0.00013698,2]
[333286889,1722024648613,-500.0,0.00013698,2]
[333286890,1722024648623,-500.0,0.00013698,2]
[333286891,1722024648632,-500.0,0.00013698,2]
[333286892,1722024648642,-500.0,0.00013698,2]
[333286893,1722024648652,-500.0,0.00013698,2]
[333286894,1722024648661,-500.0,0.00013698,2]
[333286895,1722024648670,-500.0,0.00013698,2]
[333286896,1722024648680,-500.0,0.00013698,2]
[333286897,1722024648689,-500.0,0.00013698,2]
[333286898,1722024648700,-500.0,0.00013698,2]
[333286899,1722024648710,-500.0,0.00013698,2]
[333286900,1722024648720,-508.8658198,0.00013698,2]
[333286901,1722024648730,-510.91045092,0.00013698,2]
[333286902,1722024648740,-500.0,0.00013698,2]
[333286903,1722024648750,-500.0,0.00013698,2]
[333286904,1722024648761,-500.0,0.00013698,2]
[333286905,1722024648770,-223.1229855,0.00013698,2]
[333286906,1722024648781,-500.0,0.00013698,2]
[333286907,1722024648790,-502.81326667,0.00013698,2]
[333286908,1722024648800,-500.0,0.00013698,2]
[333286909,1722024648810,-500.0,0.00013698,2]
[333286910,1722024648819,-592.80057666,0.00013698,2]
[333286911,1722024648829,-500.0,0.00013698,2]
[333286912,1722024648838,-500.0,0.00013698,2]
[333286913,1722024648849,-500.0,0.00013698,2]
[333286914,1722024648859,-500.0,0.00013698,2]
[333286915,1722024648869,-678.27,0.00013698,2]
[333286916,1722024648879,-500.0,0.00013698,2]
[333286917,1722024648889,-623.28,0.00013698,2]
[333286918,1722024648898,-520.38023902,0.00013698,2]
[333286919,1722024648908,-500.0,0.00013698,2]
[333286920,1722024648917,-500.0,0.00013698,2]
[333286921,1722024648928,-500.0,0.00013698,2]
[333286922,1722024648938,-500.0,0.00013698,2]
[333286923,1722024648948,-500.0,0.00013698,2]
[333286924,1722024648959,-500.0,0.00013698,2]
[333286925,1722024648969,-689.95,0.00013698,2]
[333286926,1722024648979,-370.27688222,0.00013698,2]
[333286927,1722024648990,-504.3363781,0.00013698,2]
[333286928,1722024649005,-500.0,0.00013698,2]
[333286929,1722024649015,-500.0,0.00013698,2]
[333286930,1722024649025,-500.0,0.00013698,2]
[333286931,1722024649035,-500.0,0.00013698,2]
[333286932,1722024649046,-640.0047803,0.00013698,2]
[333286933,1722024649057,-500.0,0.00013698,2]
[333286934,1722024649067,-500.0,0.00013698,2]
[333286935,1722024649078,-502.34821181,0.00013698,2]
[333286936,1722024649089,-500.0,0.00013698,2]
[333286937,1722024649099,-500.0,0.00013698,2]
[333286938,1722024649108,-645.52,0.00013698,2]
[333286939,1722024649118,-500.0,0.00013698,2]
[333286940,1722024649128,-255.70376863,0.00013698,2]
[333286941,1722024649138,-500.0,0.00013698,2]
[333286942,1722024649148,-500.0,0.00013698,2]
[333286943,1722024649158,-150.0,0.00013698,2]
[333286944,1722024649168,-504.3600509,0.00013698,2]
[333286945,1722024649178,-209.98036426,0.00013698,2]
[333286946,1722024649188,-500.8979793,0.00013698,2]
[333286947,1722024649198,-500.0,0.00013698,2]
[333286948,1722024649208,-734.74,0.00013698,2]
[333286949,1722024649218,-502.8022064,0.00013698,2]
[333286950,1722024649229,-500.0,0.00013698,2]
[333286951,1722024649239,-500.0,0.00013698,2]
[333286952,1722024649249,-500.0,0.00013698,2]
[333286953,1722024649259,-500.0,0.00013698,2]
[333286954,1722024649270,-502.6434046,0.00013698,2]
[333286955,1722024649280,-500.0,0.00013698,2]
[333286956,1722024649290,-500.0,0.00013698,2]
[333286957,1722024649300,-500.0,0.00013698,2]
[333286958,1722024649311,-500.0,0.00013698,2]
[333286959,1722024649321,-508.95810535,0.00013698,2]
[333286960,1722024649331,-500.0,0.00013698,2]
[333286961,1722024649342,-723.07,0.00013698,2]
[333286962,1722024649352,-500.0,0.00013698,2]
[333286963,1722024649362,-500.0,0.00013698,2]
[333286964,1722024649372,-500.0,0.00013698,2]
[333286965,1722024649382,-500.0,0.00013698,2]
[333286966,1722024649392,-500.0,0.00013698,2]
[333286967,1722024649402,-501.0,0.00013698,2]
[333286968,1722024649412,-500.0,0.00013698,2]
[333286969,1722024649422,-973.62,0.00013698,2]
[333286970,1722024649432,-500.0,0.00013698,2]
[333286971,1722024649443,-500.0,0.00013698,2]
[333286972,1722024649454,-500.0,0.00013698,2]
[333286973,1722024649464,-506.23636502,0.00013698,2]
[333286974,1722024649474,-500.0,0.00013698,2]
[333286975,1722024649484,-524.65330085,0.00013698,2]
[333286976,1722024649494,-500.0,0.00013698,2]
[333286977,1722024649504,-497.17801363,0.00013698,2]
[333286978,1722024649518,-500.0,0.00013698,2]
[333286979,1722024649702,-500.0,0.00013698,2]
[333286980,1722024649712,-500.0,0.00013698,2]
[333286981,1722024649722,-500.0,0.00013698,2]
[333286982,1722024649732,-500.0,0.00013698,2]
[333286983,1722024649742,-500.0,0.00013698,2]
[333286984,1722024649752,-500.0,0.00013698,2]
[333286985,1722024649763,-500.0,0.00013698,2]
[333286986,1722024649773,-500.0,0.00013698,2]
[333286987,1722024649783,-799.49,0.00013698,2]
[333286988,1722024649794,-500.0,0.00013698,2]
[333286989,1722024649806,-500.0,0.00013698,2]
[333286990,1722024649816,-500.0,0.00013698,2]
[333286991,1722024649826,-504.78094596,0.00013698,2]
[333286992,1722024649835,-500.0,0.00013698,2]
[333286993,1722024649845,-500.0,0.00013698,2]
[333286994,1722024649856,-500.0,0.00013698,2]
[333286995,1722024649866,-500.0,0.00013698,2]
[333286996,1722024649876,-500.0,0.00013698,2]
[333286997,1722024649887,-502.14090317,0.00013698,2]
[333286998,1722024649898,-500.0,0.00013698,2]
[333286999,1722024649908,-770.83,0.00013698,2]
[333287000,1722024649918,-500.0,0.00013698,2]
[333287001,1722024649928,-500.0,0.00013698,2]
[333287002,1722024649938,-509.99,0.00013698,2]
[333287003,1722024649947,-509.99,0.00013698,2]
[333287004,1722024649957,-509.99,0.00013698,2]
[333287005,1722024649967,-509.99,0.00013698,2]
[333287006,1722024649977,-509.99,0.00013698,2]
[333287007,1722024649986,-509.99,0.00013698,2]
[333287008,1722024649996,-500.0,0.00013698,2]
[333287009,1722024650007,-500.0,0.00013698,2]
[333287010,1722024650017,-500.0,0.00013698,2]
[333287011,1722024650027,-500.0,0.00013698,2]
[333287012,1722024650037,-500.0,0.00013698,2]
[333287013,1722024650048,-500.0,0.00013698,2]
[333287014,1722024650058,-502.45465813,0.00013698,2]
[333287015,1722024650067,-1505.42,0.00013698,2]
[333287016,1722024650077,-435.55488251,0.00013698,2]
[333287017,1722024650087,-500.0,0.00013698,2]
[333287018,1722024650097,-500.0,0.00013698,2]
[333287019,1722024650107,-500.0,0.00013698,2]
[333287020,1722024650116,-500.0,0.00013698,2]
[333287021,1722024650126,-500.0,0.00013698,2]
[333287022,1722024650135,-500.0,0.00013698,2]
[333287023,1722024650145,-500.0,0.00013698,2]
[333287024,1722024650155,-500.0,0.00013698,2]
[333287025,1722024650164,-500.0,0.00013698,2]
[333287026,1722024650174,-593.01,0.00013698,2]
[333287027,1722024650184,-500.0,0.00013698,2]
[333287028,1722024650193,-500.0,0.00013698,2]
[333287029,1722024650202,-503.01048796,0.00013698,2]
[333287030,1722024650211,-500.0,0.00013698,2]
[333287031,1722024650222,-500.0,0.00013698,2]
[333287032,1722024650231,-500.0,0.00013698,2]
[333287033,1722024650241,-531.48248053,0.00013698,2]
[333287034,1722024650250,-500.0,0.00013698,2]
[333287035,1722024650262,-416.11006723,0.00013698,2]
[333287036,1722024650271,-500.0,0.00013698,2]
[333287037,1722024650281,-500.0,0.00013698,2]
[333287038,1722024650291,-504.14963923,0.00013698,2]
[333287039,1722024650300,-500.0,0.00013698,2]
[333287040,1722024650310,-517.0852034,0.00013698,2]
[333287041,1722024650320,-524.71,0.00013698,2]
[333287042,1722024650329,-500.0,0.00013698,2]
[333287043,1722024650339,-500.0,0.00013698,2]
[333287044,1722024650348,-500.0,0.00013698,2]
[333287045,1722024650357,-500.0,0.00013698,2]
[333287046,1722024650367,-500.0,0.00013698,2]
[333287047,1722024650376,-500.0,0.00013698,2]
[333287048,1722024650385,-500.0,0.00013698,2]
[333287049,1722024650396,-501.30856067,0.00013698,2]
[333287050,1722024650405,-500.0,0.00013698,2]
[333287051,1722024650415,-151.0,0.00013698,2]
[333287052,1722024650425,-500.0,0.00013698,2]
[333287053,1722024650434,-500.0,0.00013698,2]
[333287054,1722024650443,-505.47502758,0.00013698,2]
[333287055,1722024650452,-500.0,0.00013698,2]
[333287056,1722024650461,-500.0,0.00013698,2]
[333287057,1722024650471,-500.0,0.00013698,2]
[333287058,1722024650480,-500.0,0.00013698,2]
[333287059,1722024650490,-500.0,0.00013698,2]
[333287060,1722024650499,-500.0,0.00013698,2]
[333287061,1722024650510,-509.47617074,0.00013698,2]
[333287062,1722024650523,-500.0,0.00013698,2]
[333287063,1722024650532,-500.0,0.00013698,2]
[333287064,1722024650541,-503.44801419,0.00013698,2]
[333287065,1722024650550,-500.0,0.00013698,2]
[333287066,1722024650562,-500.0,0.00013698,2]
[333287067,1722024650571,-500.0,0.00013698,2]
[333287068,1722024650581,-500.0,0.00013698,2]
[333287069,1722024650590,-500.0,0.00013698,2]
[333287070,1722024650601,-500.0,0.00013698,2]
[333287071,1722024650610,-500.0,0.00013698,2]
[333287072,1722024650619,-500.0,0.00013698,2]
[333287073,1722024650628,-1259.59,0.00013698,2]
[333287074,1722024650638,-500.0,0.00013698,2]
[333287075,1722024650648,-504.00163031,0.00013698,2]
[333287076,1722024650657,-151.0,0.00013698,2]
[333287077,1722024650666,-1775.5,0.00013698,2]
[333287078,1722024650676,-500.0,0.00013698,2]
[333287079,1722024650685,-153.125742,0.00013698,2]
[333287080,1722024650696,-1247.22,0.00013698,2]
[333287081,1722024650705,-500.0,0.00013698,2]
[333287082,1722024650714,-500.0,0.00013698,2]
[333287083,1722024650724,-500.0,0.00013698,2]
[333287084,1722024650733,-500.0,0.00013698,2]
[333287085,1722024650743,-500.0,0.00013698,2]
[333287086,1722024650752,-151.0,0.00013698,2]
[333287087,1722024650763,-674.51,0.00013698,2]
[333287088,1722024650772,-500.0,0.00013698,2]
[333287089,1722024650782,-500.0,0.00013698,2]
[333287090,1722024650792,-500.0,0.00013698,2]
[333287091,1722024650802,-151.111348,0.00013698,2]
[333287092,1722024650811,-4799.75,0.00013698,2]
[333287093,1722024650821,-791.92,0.00013698,2]
[333287094,1722024650830,-151.0,0.00013698,2]
[333287095,1722024650840,-505.85891023,0.00013698,2]
[333287096,1722024650849,-512.0384615,0.00013698,2]
[333287097,1722024650859,-151.0,0.00013698,2]
[333287098,1722024650868,-500.0,0.00013698,2]
[333287099,1722024650878,-500.0,0.00013698,2]
[333287100,1722024650888,-597.56511,0.00013698,2]
[333287101,1722024650898,-500.0,0.00013698,2]
[333287102,1722024650907,-597.56511,0.00013698,2]
[333287103,1722024650917,-500.0,0.00013698,2]
[333287104,1722024650926,-500.0,0.00013698,2]
[333287105,1722024650935,-583.09047185,0.00013698,2]
[333287106,1722024650945,-720.67,0.00013698,2]
[333287107,1722024650955,-501.55323771,0.00013698,2]
[333287108,1722024650964,-151.0,0.00013698,2]
[333287109,1722024650973,-500.0,0.00013698,2]
[333287110,1722024650983,-503.50692083,0.00013698,2]
[333287111,1722024650992,-500.0,0.00013698,2]
[333287112,1722024651002,-500.0,0.00013698,2]
[333287113,1722024651012,-500.0,0.00013698,2]
[333287114,1722024651021,-500.0,0.00013698,2]
[333287115,1722024651031,-500.0,0.00013698,2]
[333287116,1722024651040,-500.0,0.00013698,2]
[333287117,1722024651049,-500.0,0.00013698,2]
[333287118,1722024651058,-500.0,0.00013698,2]
[333287119,1722024651068,-685.36,0.00013698,2]
[333287120,1722024651077,-557.52,0.00013698,2]
[333287121,1722024651087,-500.0,0.00013698,2]
[333287122,1722024651096,-500.0,0.00013698,2]
[333287123,1722024651105,-510.65281105,0.00013698,2]
[333287124,1722024651115,-500.0,0.00013698,2]
[333287125,1722024651125,-500.0,0.00013698,2]
[333287126,1722024651134,-500.0,0.00013698,2]
[333287127,1722024651144,-500.0,0.00013698,2]
[333287128,1722024651154,-151.0,0.00013698,2]
[333287129,1722024651164,-500.0,0.00013698,2]
[333287130,1722024651173,-500.0,0.00013698,2]
[333287131,1722024651183,-4615.11,0.00013698,2]
[333287132,1722024651193,-500.0,0.00013698,2]
[333287133,1722024651202,-1627.99,0.00013698,2]
[333287134,1722024651212,-500.0,0.00013698,2]
[333287135,1722024651222,-500.0,0.00013698,2]
[333287136,1722024651231,-500.0,0.00013698,2]
[333287137,1722024651241,-151.0,0.00013698,2]
[333287138,1722024651250,-2238.39,0.00013698,2]
[333287139,1722024651259,-500.0,0.00013698,2]
[333287140,1722024651269,-151.0,0.00013698,2]
[333287141,1722024651279,-500.0,0.00013698,2]
[333287142,1722024651288,-500.0,0.00013698,2]
[333287143,1722024651297,-500.0,0.00013698,2]
[333287144,1722024651307,-1053.61,0.00013698,2]
[333287145,1722024651316,-500.0,0.00013698,2]
[333287146,1722024651326,-739.62,0.00013698,2]
[333287147,1722024651336,-500.0,0.00013698,2]
[333287148,1722024651345,-151.0,0.00013698,2]
[333287149,1722024651355,-511.40965846,0.00013698,2]
[333287150,1722024651365,-234.024652,0.00013698,2]
[333287151,1722024651374,-500.0,0.00013698,2]
[333287152,1722024651384,-500.0,0.00013698,2]
[333287153,1722024651393,-234.024652,0.00013698,2]
[333287154,1722024651402,-500.0,0.00013698,2]
[333287155,1722024651412,-500.0,0.00013698,2]
[333287156,1722024651421,-500.0,0.00013698,2]
[333287157,1722024651431,-500.0,0.00013698,2]
[333287158,1722024651440,-500.0,0.00013698,2]
[333287159,1722024651450,-500.0,0.00013698,2]
[333287160,1722024651459,-500.0,0.00013698,2]
[333287161,1722024651468,-626.91,0.00013698,2]
[333287162,1722024651477,-515.8,0.00013698,2]
[333287163,1722024651487,-500.0,0.00013698,2]
[333287164,1722024651496,-151.0,0.00013698,2]
[333287165,1722024651506,-1598.2,0.00013698,2]
[333287166,1722024651522,-500.0,0.00013698,2]
[333287167,1722024651532,-795.79,0.00013698,2]
[333287168,1722024651544,-674.64,0.00013698,2]
[333287169,1722024651554,-500.49,0.00013698,2]
[333287170,1722024651563,-516.35615577,0.00013698,2]
[333287171,1722024651572,-500.0,0.00013698,2]
[333287172,1722024651581,-1523.9,0.00013698,2]
[333287173,1722024651592,-500.0,0.00013698,2]
[333287174,1722024651601,-500.0,0.00013698,2]
[333287175,1722024651611,-680.123932,0.00013698,2]
[333287176,1722024651620,-500.0,0.00013698,2]
[333287177,1722024651630,-500.0,0.00013698,2]
[333287178,1722024651640,-680.123932,0.00013698,2]
[333287179,1722024651650,-3207.0,0.00013698,2]
[333287180,1722024651660,-512.38206662,0.00013698,2]
[333287181,1722024651669,-624.47,0.00013698,2]
[333287182,1722024651679,-553.86,0.00013698,2]
[333287183,1722024651689,-581.46,0.00013698,2]
[333287184,1722024651698,-151.0,0.00013698,2]
[333287185,1722024651707,-846.07,0.00013698,2]
[333287186,1722024651717,-4890.2,0.00013698,2]
[333287187,1722024651726,-191.126084,0.00013698,2]
[333287188,1722024651735,-500.0,0.00013698,2]
[333287189,1722024651745,-500.0,0.00013698,2]
[333287190,1722024651754,-191.126084,0.00013698,2]
[333287191,1722024651764,-500.0,0.00013698,2]
[333287192,1722024651774,-500.0,0.00013698,2]
[333287193,1722024651784,-1378.07,0.00013698,2]
[333287194,1722024651793,-1038.14,0.00013698,2]
[333287195,1722024651803,-500.0,0.00013698,2]
[333287196,1722024651812,-151.0,0.00013698,2]
[333287197,1722024651821,-500.0,0.00013698,2]
[333287198,1722024651830,-500.0,0.00013698,2]
[333287199,1722024651839,-639.045034,0.00013698,2]
[333287200,1722024651849,-500.0,0.00013698,2]
[333287201,1722024651858,-500.0,0.00013698,2]
[333287202,1722024651867,-500.0,0.00013698,2]
[333287203,1722024651877,-639.045034,0.00013698,2]
[333287204,1722024651886,-810.67,0.00013698,2]
[333287205,1722024651895,-500.0,0.00013698,2]
[333287206,1722024651904,-612.46874,0.00013698,2]
[333287207,1722024651914,-500.0,0.00013698,2]
[333287208,1722024651924,-912.8,0.00013698,2]
[333287209,1722024651933,-612.46874,0.00013698,2]
[333287210,1722024651942,-661.01,0.00013698,2]
[333287211,1722024651951,-500.0,0.00013698,2]
[333287212,1722024651961,-970.46,0.00013698,2]
[333287213,1722024651970,-500.0,0.00013698,2]
[333287214,1722024651979,-500.0,0.00013698,2]
[333287215,1722024651988,-500.37,0.00013698,2]
[333287216,1722024651997,-500.0,0.00013698,2]
[333287217,1722024652007,-516.77693941,0.00013698,2]
[333287218,1722024652016,-500.0,0.00013698,2]
[333287219,1722024652026,-500.0,0.00013698,2]
[333287220,1722024652036,-500.0,0.00013698,2]
[333287221,1722024652045,-886.37,0.00013698,2]
[333287222,1722024652055,-536.64,0.00013698,2]
[333287223,1722024652065,-500.0,0.00013698,2]
[333287224,1722024652074,-500.0,0.00013698,2]
[333287225,1722024652083,-500.0,0.00013698,2]
[333287226,1722024652093,-852.7,0.00013698,2]
[333287227,1722024652101,-500.0,0.00013698,2]
[333287228,1722024652111,-500.0,0.00013698,2]
[333287229,1722024652120,-495.067285,0.00013698,2]
[333287230,1722024652129,-500.0,0.00013698,2]
[333287231,1722024652138,-500.0,0.00013698,2]
[333287232,1722024652147,-500.0,0.00013698,2]
[333287233,1722024652156,-156.40591591,0.00013698,2]
[333287234,1722024652166,-500.0,0.00013698,2]
[333287235,1722024652175,-495.067285,0.00013698,2]
[333287236,1722024652184,-500.0,0.00013698,2]
[333287237,1722024652194,-229.615644,0.00013698,2]
[333287238,1722024652203,-500.0,0.00013698,2]
[333287239,1722024652212,-500.0,0.00013698,2]
[333287240,1722024652222,-151.0,0.00013698,2]
[333287241,1722024652231,-500.0,0.00013698,2]
[333287242,1722024652241,-229.615644,0.00013698,2]
[333287243,1722024652250,-637.1,0.00013698,2]
[333287244,1722024652261,-278.828134,0.00013698,2]
[333287245,1722024652272,-500.0,0.00013698,2]
[333287246,1722024652282,-500.0,0.00013698,2]
[333287247,1722024652291,-500.0,0.00013698,2]
[333287248,1722024652301,-1393.14,0.00013698,2]
[333287249,1722024652311,-500.28,0.00013698,2]
[333287250,1722024652320,-500.0,0.00013698,2]
[333287251,1722024652329,-278.828134,0.00013698,2]
[333287252,1722024652339,-260.582424,0.00013698,2]
[333287253,1722024652348,-1138.13,0.00013698,2]
[333287254,1722024652357,-500.0,0.00013698,2]
[333287255,1722024652367,-520.34848726,0.00013698,2]
[333287256,1722024652377,-258.98429498,0.00013698,2]
[333287257,1722024652386,-500.0,0.00013698,2]
[333287258,1722024652396,-500.0,0.00013698,2]
[333287259,1722024652406,-500.0,0.00013698,2]
[333287260,1722024652415,-500.0,0.00013698,2]
[333287261,1722024652424,-500.0,0.00013698,2]
[333287262,1722024652433,-500.0,0.00013698,2]
[333287263,1722024652443,-295.56516224,0.00013698,2]
[333287264,1722024652453,-500.0,0.00013698,2]
[333287265,1722024652463,-500.0,0.00013698,2]
[333287266,1722024652472,-350.0,0.00013698,2]
[333287267,1722024652482,-500.0,0.00013698,2]
[333287268,1722024652492,-500.0,0.00013698,2]
[333287269,1722024652501,-500.0,0.00013698,2]
[333287270,1722024652513,-500.0,0.00013698,2]
[333287271,1722024652524,-500.0,0.00013698,2]
[333287272,1722024652534,-500.0,0.00013698,2]
[333287273,1722024652544,-500.0,0.00013698,2]
[333287274,1722024652554,-627.43614444,0.00013698,2]
[333287275,1722024652564,-500.0,0.00013698,2]
[333287276,1722024652574,-500.0,0.00013698,2]
[333287277,1722024652583,-500.0,0.00013698,2]
[333287278,1722024652595,-413.98526853,0.00013698,2]
[333287279,1722024652605,-500.0,0.00013698,2]
[333287280,1722024652615,-500.0,0.00013698,2]
[333287281,1722024652624,-500.0,0.00013698,2]
[333287282,1722024652634,-500.0,0.00013698,2]
[333287283,1722024652643,-500.0,0.00013698,2]
[333287284,1722024652653,-500.0,0.00013698,2]
[333287285,1722024652662,-500.0,0.00013698,2]
[333287286,1722024652671,-500.0,0.00013698,2]
[333287287,1722024652681,-500.0,0.00013698,2]
[333287288,1722024652690,-500.0,0.00013698,2]
[333287289,1722024652700,-260.582424,0.00013698,2]
[333287290,1722024652710,-500.0,0.00013698,2]
[333287291,1722024652720,-500.0,0.00013698,2]
[333287292,1722024652729,-500.0,0.00013698,2]
[333287293,1722024652738,-500.0,0.00013698,2]
[333287294,1722024652748,-500.0,0.00013698,2]
[333287295,1722024652757,-500.0,0.00013698,2]
[333287296,1722024652767,-500.0,0.00013698,2]
[333287297,1722024652776,-500.0,0.00013698,2]
[333287298,1722024652785,-506.86964681,0.00013698,2]
[333287299,1722024652795,-1139.21,0.00013698,2]
[333287300,1722024652805,-2207.41,0.00013698,2]
[333287301,1722024652815,-500.0,0.00013698,2]
[333287302,1722024652823,-253.05637802,0.00013698,2]
[333287303,1722024652833,-500.0,0.00013698,2]
[333287304,1722024652842,-500.0,0.00013698,2]
[333287305,1722024652852,-1131.49,0.00013698,2]
[333287306,1722024652862,-500.0,0.00013698,2]
[333287307,1722024652872,-152.236607,0.00013698,2]
[333287308,1722024652882,-179.95151,0.00013699,2]
[333287309,1722024652892,-179.95151,0.00013699,2]
[333287310,1722024652901,-467.8511654,0.00013699,2]
[333287311,1722024652911,-508.699135,0.00013699,2]
[333287312,1722024652920,-238.653872,0.00013699,2]
[333287313,1722024652930,-238.653872,0.00013699,2]
[333287314,1722024652940,-150.112233,0.000137,2]
[333287315,1722024652949,-150.112233,0.000137,2]
[333287316,1722024652959,-4189.14125977,0.00013717,2]
[333287317,1722024652968,-278.828134,0.00013717,2]
[333287318,1722024652978,-278.828134,0.00013717,2]
[333287319,1722024652988,-324.74119369,0.00013838,2]
[333287320,1722024652998,-509.99,0.00013899,2]
[333287321,1722024653007,-500.0,0.00013899,2]
[333287322,1722024653017,-5969.85221184,0.000139,2]
[333287323,1722024653027,-4987.90562009,0.000139,2]
[333287324,1722024653036,-150.112233,0.000139,2]
[333287325,1722024653045,-587.5083279,0.000139,2]
[333287326,1722024653054,-151.0,0.000139,2]
[333287327,1722024653064,-151.0,0.000139,2]
[333287328,1722024653074,-151.0,0.000139,2]
[333287329,1722024653085,-151.0,0.000139,2]
[333287330,1722024653097,-151.0,0.000139,2]
[333287331,1722024653109,-151.0,0.000139,2]
[333287332,1722024653119,-151.0,0.000139,2]
[333287333,1722024653130,-151.0,0.000139,2]
[333287334,1722024653140,-151.0,0.000139,2]
[333287335,1722024653151,-151.0,0.000139,2]